Cogmind - Beta 10.2 @@@ ROGUE MODE // 2021.08.04 @ 21:44:44 Player: Azoxey Result: Destroyed by Y-45 Defender with Heavy Assault Rifle Performance ------------- Evolutions (1) 500 Regions Visited (4) 800 Robots Destroyed (45) 225 Value Destroyed (1122) 1122 Prototype IDs (3) 60 Alien Tech Used (0) 0 Bonus (11) 11 TOTAL SCORE: 2718 Bonus ------- High Alert Combat Kills 11 Cogmind --------- Core Integrity 0/400 Matter 205/300 Energy 98/100 System Corruption 3% Temperature Cool (0) Movement Core (50) Location -9/Storage Parts ------- > --- POWER (1) -------- (None) > --- PROPULSION (4) --- (None) > --- UTILITY (2) ------ (None) > --- WEAPON (2) ------- (None) > --- INVENTORY (4) ---- Improved Ion Engine Field Recycling Unit (0) Rocket Launcher Improved Datajack Peak State ------------ > --- POWER ------------ Cooled Ion Engine > --- PROPULSION ------- Light Treads Light Treads > --- UTILITY ---------- Large Storage Unit > --- WEAPON ----------- Improved EM Shotgun Advanced Beam Cannon > --- INVENTORY -------- Improved Ion Engine Large Storage Unit Medium Matter Pod Advanced Signal Interpreter Improved Light Armor Plating Field Recycling Unit Rocket Launcher Mini Grenade Launcher Improved Datajack Improved Datajack [Rating: 14] Favorites ----------- Power Light Ion Engine Engine Light Ion Engine Propulsion Aluminum Leg Treads Light Treads Leg Aluminum Leg Wheel Wheel Flight Unit Flight Unit Utility Terrain Scanner Device Terrain Scanner Storage Large Storage Unit Processor Seismic Analyzer Weapon Small Laser Energy Gun Small Laser Energy Cannon Advanced Beam Cannon Ballistic Gun Light Assault Rifle Launcher Grenade Launcher Impact Weapon Heavy Hammer Special Melee Weapon Datajack Build | -11 -10 -10 -9 -9 ------- Run | Scr Mat Min Mat Sto Slots Evolved 2 | . . . 2 . Power . | . . . . . Propulsion 2 | . . . 2 . Utility . | . . . . . Weapon . | . . . . . Parts Attached 62 | 10 9 6 25 12 Power 7 | 3 1 . 2 1 Engine 7 | 3 1 . 2 1 Core . | . . . . . Reactor . | . . . . . Propulsion 10 | 3 . 2 2 3 Treads 3 | . . . 2 1 Leg 5 | 2 . 1 . 2 Wheel 1 | 1 . . . . Hover . | . . . . . Flight 1 | . . 1 . . Utility 12 | 2 1 2 7 . Device 5 | 1 . 1 3 . Storage 5 | 1 . 1 3 . Processor 2 | . 1 . 1 . Hackware . | . . . . . Protection . | . . . . . Artifact . | . . . . . Weapon 33 | 2 7 2 14 8 Energy Gun 10 | 2 4 1 1 2 Energy Cannon 2 | . . . 1 1 Ballistic Gun 6 | . 1 . 4 1 Ballistic Cannon . | . . . . . Launcher 10 | . 2 1 4 3 Special Weapon . | . . . . . Impact Weapon 2 | . . . 1 1 Slashing Weapon . | . . . . . Piercing Weapon . | . . . . . Special Melee Weapon 3 | . . . 3 . Unidentified Prototypes 3 | . . . 1 2 Parts Lost 18 | . 4 2 4 8 Power 3 | . 1 . 1 1 Propulsion 6 | . . 1 2 3 Utility 2 | . 1 . . 1 Weapon 7 | . 2 1 1 3 Highest Loss Streak 4 | . 4 2 4 4 Average Slot Usage (%) 83 | . 98 99 72 71 Engine 12 | . 14 14 10 10 Treads 9 | . . . 13 22 Leg 13 | . 28 26 4 3 Device 9 | . 6 13 10 5 Storage 12 | . 14 14 10 11 Processor 1 | . 7 . . . Energy Gun 9 | . 20 20 1 5 Ballistic Gun 2 | . 3 . 5 . Launcher 3 | . 2 7 1 1 Impact Weapon 3 | . . . 6 5 Special Melee Weapon 3 | . . . 6 4 Naked Turns 1 | . . . . 1 Heaviest Build 44 | 11 11 40 44 31 Greatest Support 60 | 20 20 20 40 60 Greatest Overweight (x) 13 | . . 9 13 . Average Overweight (x) . | . . 1 . . Largest Inventory Capacity 14 | 6 6 14 12 10 Average Capacity 9 | 4 6 11 10 9 Most Carried 12 | 4 6 12 12 10 Average Carried 9 | 1 4 10 10 9 Final Capacity 12 | 6 6 12 10 4 Final Carried 12 | 3 6 12 10 4 Class Distribution -------------------- 95% | Mutant 4% | Scavenger-Mutant Dominant Class ---------------- Mutant | -10/Materials Mutant | -10/Mines Mutant | -9/Materials Mutant | -9/Storage Resources | -11 -10 -10 -9 -9 ----------- Run | Scr Mat Min Mat Sto Matter Collected 1073 | 275 138 210 212 238 Remotely 114 | 114 . . . . Salvage Created 1187 | 67 150 162 308 500 Parts 76 | 1 9 8 23 35 Haulers Intercepted 2 | . . . 1 1 Recyclers Shooed 5 | . 3 1 . 1 Parts Field Recycled . | . . . . . Retrieved Matter . | . . . . . Parts Self-Destructed . | . . . . . Prevented . | . . . . . Kills | -11 -10 -10 -9 -9 ------- Run | Scr Mat Min Mat Sto Combat Hostiles Destroyed 31 | . 4 5 9 13 Melee 2 | . . . . 2 Guns 11 | . 2 1 4 4 AOE 17 | . 2 4 5 6 Classes Destroyed 9 | 1 3 . 5 . Worker 1 | . . . 1 . Builder 4 | . . . 2 2 Hauler 2 | . . . 1 1 Recycler 4 | 1 . 1 . 2 Operator 1 | . 1 . . . Watcher 2 | . . . 1 1 Swarmer 11 | . 1 3 4 3 Grunt 11 | . 3 2 1 5 Sentry 9 | . . . 4 5 Best Kill Streak 9 | 1 2 5 9 6 Combat Bots Only 7 | . 1 5 7 4 Max Kills in Single Turn 3 | 1 1 3 3 2 Gunslinging . | . . . . . Exploded 2 | . 1 2 2 1 Melee 1 | . . . . 1 Uniques/NPCs Destroyed . | . . . . . Combat | -11 -10 -10 -9 -9 -------- Run | Scr Mat Min Mat Sto Damage Taken 1985 | . 402 74 513 996 Core 468 | . 52 14 184 218 Absorbed by Shields . | . . . . . Core Remaining (%) 86 | 100 . 73 . . Volleys Fired 83 | 7 29 8 15 24 Largest 2 | 2 2 2 2 2 Hottest 113 | 80 80 70 60 113 Shots Fired 125 | 8 47 12 22 36 Gun 83 | 8 42 8 13 12 Cannon 5 | . . . . 5 Launcher 37 | . 5 4 9 19 Special . | . . . . . Kinetic 29 | . 18 . 11 . Thermal 43 | 7 19 8 2 7 Explosive 37 | . 5 4 9 19 Electromagnetic 16 | 1 5 . . 10 Robot Hit Streak 10 | 3 9 4 2 10 Robot Miss Streak 5 | 2 4 5 2 3 Penetration Max . | . . . . . Secondary Targets . | . . . . . Shots Hit Robots 102 | 4 31 5 21 41 Core Hits 83 | 2 12 7 26 36 Critical Hits . | . . . . . Critical Kills . | . . . . . Critical Parts Destroyed . | . . . . . Melee Attacks 28 | . . . 13 15 Impact 20 | . . . 6 14 Slashing . | . . . . . Piercing . | . . . . . Sneak Attacks 13 | . . . 12 1 Combat Hostiles . | . . . . . Follow-up Attacks . | . . . . . Damage Inflicted 3184 | 44 443 270 946 1481 Guns 646 | 44 287 62 74 179 Cannons . | . . . . . Explosions 1954 | . 156 208 509 1081 Melee 584 | . . . 363 221 Ramming . | . . . . . Kinetic 162 | . 109 . 53 . Thermal 261 | 44 122 62 21 12 Explosive 1954 | . 156 208 509 1081 Electromagnetic 223 | . 56 . . 167 Impact 584 | . . . 363 221 Slashing . | . . . . . Piercing . | . . . . . Highest Corruption 3 | . 1 1 1 3 Average Corruption 1 | . 1 1 1 2 Corruption Purged . | . . . . . Effects 8 | . . 1 . 7 Message Errors 1 | . . . . 1 Matter Fused 2 | . . . . 2 Heat Flow Errors 1 | . . . . 1 Energy Discharges 3 | . . 1 . 2 Data Loss (minor) 1 | . . . . 1 Overload Shots . | . . . . . Overflow Damage 138 | . 1 . 91 46 Projectiles . | . . . . . Explosions 20 | . 1 . 8 11 Melee 118 | . . . 83 35 Knockbacks 2 | . . . 2 . Impact 2 | . . . 2 . Kinetic . | . . . . . Secondary . | . . . . . Self-Inflicted Damage 169 | . 30 . 76 63 Shots 7 | . 1 . 2 4 Rammed 1 | . 1 . . . Targets Rammed 1 | . 1 . . . Kicked . | . . . . . Crushed . | . . . . . Highest Temperature 334 | 18 235 27 266 334 Average Temperature 87 | 12 107 12 87 84 Received Heat Transfer 567 | . 192 . 69 306 Effects 2 | . 2 . . . Interference 2 | . 2 . . . Siege Activations . | . . . . . Robots Corrupted . | . . . . . Combat Hostiles . | . . . . . Parts Fried 2 | . . . . 2 Impact Corruptions 7 | . . . 3 4 Robots Melted . | . . . . . Combat Hostiles . | . . . . . Parts Melted . | . . . . . Heat Transferred 600 | 100 275 150 50 25 Parts Sabotaged . | . . . . . Parts Stolen . | . . . . . Parts Stripped . | . . . . . Power Chain Reactions . | . . . . . Missiles Intercepted . | . . . . . Alert | -11 -10 -10 -9 -9 ------- Run | Scr Mat Min Mat Sto Peak Influence 485 | 5 113 143 239 485 Initial 43 | . 3 43 1 . Average 67 | 3 36 25 57 219 Maximum Alert Level 2 | . . . 1 2 Low Security (%) 87 | 100 100 100 89 46 Level 1 9 | . . . 10 34 Level 2 2 | . . . . 18 Level 3 . | . . . . . Level 4 . | . . . . . Level 5 . | . . . . . High Security . | . . . . . Max Security . | . . . . . Squads Dispatched 6 | . 2 . 1 3 Investigation 4 | . . . 1 3 Extermination . | . . . . . Reinforcement 2 | . 2 . . . Assault . | . . . . . Garrison . | . . . . . Intercept . | . . . . . Construction Impeded . | . . . . . Haulers Reinforced . | . . . . . Stealth | -11 -10 -10 -9 -9 --------- Run | Scr Mat Min Mat Sto Distress Signals 5 | . 2 . 1 2 Communications Jammed . | . . . . . Distress Signals . | . . . . . Times Spotted 53 | . 13 6 12 22 Peak Tracking Total 9 | . 3 5 7 9 Tactical Retreats 1 | . . . . 1 Traps | -11 -10 -10 -9 -9 ------- Run | Scr Mat Min Mat Sto Traps Triggered 5 | . 1 . 2 2 Indirectly . | . . . . . Trap Hack Attempts 2 | . . . 2 . Triggered . | . . . . . Disarmed . | . . . . . Reprogrammed 1 | . . . 1 . Reused 1 | . . . 1 . Traps Extracted . | . . . . . Installed 1 | . . . 1 . Triggered 1 | . . . 1 . Machines | -11 -10 -10 -9 -9 ---------- Run | Scr Mat Min Mat Sto Machines Disabled 11 | . . . 1 10 Max in Single Turn 3 | . . . 1 3 Machines Sabotaged . | . . . . . Garrisons Compromised . | . . . . . Overloaded Fab Kills . | . . . . . Fab Network Shutdowns . | . . . . . Hacking | -11 -10 -10 -9 -9 --------- Run | Scr Mat Min Mat Sto Machines Accessed 9 | . 1 . 3 5 Terminals 7 | . . . 2 5 Fabricators . | . . . . . Repair Stations . | . . . . . Recycling Units 1 | . 1 . . . Scanalyzers 1 | . . . 1 . Garrison Access . | . . . . . Total Hacks 22 | . 2 . 6 14 Successful 15 | . 2 . 4 9 Failed 7 | . . . 2 5 Catastrophic 1 | . . . . 1 Database Lockouts . | . . . . . Manual 18 | . 1 . 4 13 Terminals 18 | . . . 4 14 Fabricators . | . . . . . Repair Stations . | . . . . . Recycling Units 2 | . 2 . . . Scanalyzers 2 | . . . 2 . Garrison Access . | . . . . . Terminal Hacks 2 | . . . . 2 Terminal Index 1 | . . . . 1 Hauler Manifests 1 | . . . . 1 Fabricator Hacks . | . . . . . Repair Station Hacks . | . . . . . Recycling Unit Hacks 1 | . 1 . . . Retrieve Matter 1 | . 1 . . . Scanalyzer 2 | . . . 2 . Insert Component 1 | . . . 1 . Analyze 1 | . . . 1 . Garrison Access Hacks . | . . . . . Unauthorized Hacks 10 | . 1 . 2 7 Terminals 9 | . . . 2 7 Track 1 | . . . . 1 Botnet 5 | . . . 1 4 Detonate 1 | . . . . 1 Operators 2 | . . . 1 1 Fabricators . | . . . . . Repair Stations . | . . . . . Recycling Units 1 | . 1 . . . Reject 1 | . 1 . . . Scanalyzers . | . . . . . Garrison Access . | . . . . . Data Cores Recovered . | . . . . . Used . | . . . . . Hacking Detections 8 | . 1 . 2 5 Full Trace Events 2 | . . . . 2 Feedback Events . | . . . . . Feedback Blocked . | . . . . . Robot Schematics Acquired . | . . . . . Robots Built . | . . . . . Matter . | . . . . . Time . | . . . . . Total Robot Build Rating . | . . . . . Part Schematics Acquired 1 | . . . 1 . Parts Built . | . . . . . Matter . | . . . . . Time . | . . . . . Total Part Build Rating . | . . . . . Parts Repaired . | . . . . . Time . | . . . . . Parts Recycled . | . . . . . Recycled Matter . | . . . . . Retrieved Matter . | . . . . . Retrieved Components . | . . . . . Parts Scanalyzed 1 | . . . 1 . Part Schematics Acquired 1 | . . . 1 . Parts Damaged . | . . . . . Bothacking | -11 -10 -10 -9 -9 ------------ Run | Scr Mat Min Mat Sto Used RIF Installer . | . . . . . Robots Hacked 5 | . . . 4 1 Non-combat 5 | . . . 4 1 Combat . | . . . . . Robot Hacks Applied 7 | . . . 6 1 parse_system 1 | . . . 1 . no_distress 5 | . . . 5 . find_recycling 1 | . . . . 1 Relay Couplers Released . | . . . . . Robots Rewired . | . . . . . Allies Hacked . | . . . . . Hacks Repelled . | . . . . . Allies | -11 -10 -10 -9 -9 -------- Run | Scr Mat Min Mat Sto Total Allies 1 | . . 1 . . Largest Group 1 | . . 1 1 . Highest-Rated Group 31 | . . 31 31 . Highest-Rated Ally 31 | . . 31 31 . Total Orders . | . . . . . Ally Attacks . | . . . . . Total Damage . | . . . . . Kills . | . . . . . Allies Corrupted . | . . . . . Allies Melted . | . . . . . Intel | -11 -10 -10 -9 -9 ------- Run | Scr Mat Min Mat Sto Robot Analysis Total . | . . . . . Derelict Logs Recovered 3 | . . 3 . . Drone Launches . | . . . . . Drone Recoveries . | . . . . . Exploration | -11 -10 -10 -9 -9 ------------- Run | Scr Mat Min Mat Sto Turns Passed 2951 | 96 384 785 1263 423 Spaces Moved 1618 | 51 212 479 686 190 Core 10 | 5 . . 2 3 Treads 723 | . . . 536 187 Legs 873 | 37 212 476 148 . Wheels 9 | 9 . . . . Hover . | . . . . . Flight 3 | . . 3 . . Fastest Speed 50 | 50 120 120 50 50 Average Speed 152 | 106 120 153 163 158 Slowest Speed 770 | 120 120 770 700 160 Overloaded Moves . | . . . . . Propulsion Burnouts . | . . . . . Robots Hopped . | . . . . . Cave-ins Triggered . | . . . . . Exploration Rate (%) 39 | 4 23 98 33 40 Regions Visited 4 Branch Regions 2 Pre-discovered Areas 2 | . . 2 . . Known Exits Taken . | . . . . . Unknown Exits Taken 4 | 1 1 1 1 . Scrap Searched 2 | . . 2 . . Spaces Dug . | . . . . . Terrain Destroyed 228 | . 23 20 69 116 Melee . | . . . . . Projectile . | . . . . . AOE 228 | . 23 20 69 116 Terrain Rammed . | . . . . . Walls Destroyed . | . . . . . Machines Disabled . | . . . . . Actions | -11 -10 -10 -9 -9 --------- Run | Scr Mat Min Mat Sto Total 1942 | 88 299 515 795 245 Wait 51 | 2 36 9 4 . Move 1614 | 50 211 478 685 190 Hop . | . . . . . Pick Up 55 | 13 8 10 24 . Fast Attach 15 | . 1 2 6 6 Attach 21 | 10 6 2 2 1 Detach 10 | 3 3 1 3 . Swap 26 | . 2 2 17 5 Drop 35 | 3 2 3 23 4 Fire 83 | 7 29 8 15 24 Melee 28 | . . . 13 15 Ram . | . . . . . Kick 1 | . 1 . . . Crush . | . . . . . Escape Stasis . | . . . . . Rewire . | . . . . . Trap 3 | . . . 3 . Miscellaneous . | . . . . . Route ------- -11/Scrapyard -10/Materials -10/Mines (discovered 2 exits: *Mat x2) -9/Materials (discovered 2 exits: *Mat / *Sto) -9/Storage History --------- Turn | Location | Event 17 | -11/Scrapyard | Discovered new exit (range 15) 97 | -11/Scrapyard | Entered Materials 319 | -10/Materials | Build established: Mutant 372 | -10/Materials | Lost 4 parts (1p1u2w) 451 | -10/Materials | Discovered new exit (range 15) 481 | -10/Materials | Entered Mines 489 | -10/Mines | Met a Derelict bent on vengeance 540 | -10/Mines | Discovered new exit (range 9) 593 | -10/Mines | Discovered new exit (range 6) 684 | -10/Mines | Learned Materials emergency access door positions 705 | -10/Mines | Found a hidden stash of uninstalled traps 721 | -10/Mines | Learned location of Zion (-7) 1016 | -10/Mines | Received a Mining Laser from a helpful Derelict 1266 | -10/Mines | Entered Materials 1266 | -9/Materials | Accompanied by 1 ally 1266 | -9/Materials | Evolved 2 slots: Propulsion x2 1558 | -9/Materials | Lost 4 parts (1p2n1w) 1564 | -9/Materials | Destroyed 7 combat bots 1786 | -9/Materials | Discovered new exit (range 3) 1814 | -9/Materials | Identified exit to Materials 1885 | -9/Materials | Discovered new exit (range 4) 2529 | -9/Materials | Entered Storage 2624 | -9/Storage | Core integrity fell below 50% 2875 | -9/Storage | Core integrity fell below 20% 2951 | -9/Storage | Released all parts (3) 2952 | -9/Storage | Destroyed by Y-45 Defender with Heavy Assault Rifle Last Messages --------------- 02934_ Lgt. Treads destroyed. 02934_ Destroyed Lgt. Treads. 02936_ U-05 Engineer builds a Wall. 02936_ Sml. Laser destroyed. 02939_ W-16 Scout sends out distress signal. 02941_ U-05 Engineer builds a Door. 02943_ G-34 Mercenary destroyed. 02945_ W-16 Scout destroyed. 02946_ U-05 Engineer builds a Wall. 02947_ Y-45 Defender destroyed. 02949_ G-34 Mercenary destroyed. 02949_ R-06 Scavenger destroyed. 02949_ Lgt. Treads destroyed. 02950_ Cld. Ion Engine destroyed. 02950_ U-05 Engineer lays Concrete. 02951_ Released Aluminum Leg. 02951_ Released Lrg. Storage Unit. 02951_ Released Mni. Grenade Launcher. 02951_ Extracted 19 matter. 02952_ U-05 Engineer lays Concrete. Map ----- +----------------------------------------------------+ | ??????????????????????????????????????????# ##?# | | ???????????????????????????????????????#??# #?#?? | | ???????????????????????????????? ?????#???# #???? | | ?????????????????????????????????????#????# #???? | | ???????????????????#+#????????????????????# #???? | | ???????????????????# #????????#####???????# #???? | | ?????????????????### ###??????? ######???## #??#? | | ?????????????????# ######### ########## ##### | | ?????????????????# | | ?????????????????# % | | ?????????????????# | | ?????????????????# ###########+######T#####+## | | ???????????????#####+#####???# ####?## T | | ???????????????# #???# #?????# | | ???????????????# """ #???# " % #??#??# """ | | ???????????????# "T" #???# " #?????# """ | | ??????????????## #???# "*=" #?#?### """ | | ??????????????# """ ##??# "][" #????## | | ??????????????## == " " #??# """ #?????# """ | | ???????????????# =! #??# #???#?# """ | | ???????????????# =! Y%= #??#####/######???## ??? | | ???????????????###### #??????# #?????????# ?? | | ????????????????????# ! ?#?????# #?#####???# ? | | ?????????????????????# %=######### #?"""#### ??? | | ??????????????????#??# ! ##"Y" ##???? | | ?????????????????????# @ #=%= ##??? | | ?????????????????#####!! # #??? | | ?????????????????# /!=! # #??? | | ??????????? = !] a # #??? | | ??????? g != u #??? | | ???????? =%! # #??? | | ????????##+##### #######T### k ##??? | | ???????????????# #?????###?# #???? | | ???????????????# #?????????###########???# | | ???????????????# ?????????????????????#?? | | ???????????????# """ """ #???????????????????????? | | ???????????????# """ """ #???????????????????????? | | ???????????????# """ """ #???????????????????????? | | ??????????????????? ?? #???????????????????????? | | ??????????????????? |??? #???????????????????????? | | ???????????????????##???##???????????????????????# | | ??????????????????????????????????????????????#??? | | ?????????????????????????????????????????????????? | | ?????????????????????????????????????????????????? | | ?????????????????????????????????????????????????? | | ?????????????????????????????????????????????????? | | ?????????????????????????????????????????????????? | | | | | | | +----------------------------------------------------+ Best States ------------- Heat Dissipation 28 Energy Generation 14 Energy Capacity 280 Matter Stores 300 Matter Capacity 300 Sight Range 16 Terrain Scan Range 14 Terrain Scan Density 60 Evasion (%) 40 Recoil Reduction 3 Item Schematics ----------------- Adv. Signal Interpreter | -9/Materials | Scanalyzed Robot Schematics ------------------ None Fabricated ------------ Nothing Alien Tech Used ----------------- None Achievements -------------- None Challenges ------------ None Game ------ Seed PhasingFactoryPurifier Manual? 0 Play Time 00:48:22 Cumulative 31.8 hours Start 2021.08.04 @ 20:54:21 End 2021.08.04 @ 21:44:44 Sessions 1 Manual Loads 0 Difficulty Rogue Special Mode None Game No. 19 Rogue 19 Adventurer 0 Explorer 0 Win Type - Total 0 Types 0/0/0/0/0/0/0/0/0 Lore% 30 Gallery% 34 Achievement% 28 Wizard Run 0 Options --------- ASCII 0 Keyboard 1 Movement Vi Keybinds 0 Fullscreen 1 Font 20/SmallcapsGlow Map View 50x50 Tactical HUD 1 Map Filters NONE Filters NONE Steam 1 RUN: 181d5ace-0790-46b8-a953-afb0da8065f3